lending/lending_fUSD_20240111
["ID","MTS","AMOUNT","RATE_DAILY","PERIOD"]
[311148331,1704933041257,-494.9883492,0.00038142,2]
[311148333,1704933041269,-425.4805716,0.00038142,2]
[311148357,1704933041498,-1001.87909455,0.00038142,2]
[311148359,1704933041510,-6119.44966833,0.00038142,2]
[311148365,1704933041558,-11608.58558433,0.00038142,2]
[311148572,1704933043279,-1000.0,0.0003804,2]
[311148575,1704933043289,-1000.0,0.00038041,4]
[311148578,1704933043299,-155.0,0.00038041,2]
[311148580,1704933043308,-167.56085,0.00038142,2]
[311148583,1704933043319,-1795.85067961,0.00038142,2]
[311148585,1704933043334,-465.15169898,0.00038142,2]
[311148595,1704933043396,-4785.66848949,0.00038142,2]
[311148602,1704933043459,-1032.1711373,0.00038142,2]
[311148605,1704933043471,-3332.51199329,0.00038142,2]
[311148607,1704933043483,-17801.68717077,0.00038142,2]
[311148609,1704933043495,-6463.30901227,0.00038142,2]
[311148611,1704933043507,-10294.36200001,0.00038142,2]
[311148910,1704933046197,-3708.58280583,0.00038142,2]
[311148935,1704933046370,-6713.0695721,0.00038142,2]
[311148937,1704933046380,-1659.911,0.00038156,2]
[311148939,1704933046390,-441.35286324,0.00038256,10]
[311148941,1704933046399,-191.21208721,0.00038256,2]
[311148943,1704933046409,-167.0,0.00038278,2]
[311148944,1704933046418,-343.94,0.00038285,2]
[311148947,1704933046428,-1650.33296568,0.000383,2]
[311148949,1704933046437,-154.59,0.000383,3]
[311148951,1704933046446,-154.59,0.000383,3]
[311148953,1704933046455,-154.59,0.000383,3]
[311148955,1704933046466,-154.59,0.000383,3]
[311148957,1704933046475,-154.59,0.000383,3]
[311148959,1704933046485,-154.59,0.000383,3]
[311148961,1704933046494,-154.59,0.000383,3]
[311148963,1704933046503,-386.89,0.00038336,10]
[311148965,1704933046513,-47766.4637204,0.00038346,10]
[311148967,1704933046523,-150.18,0.00038346,2]
[311148970,1704933046532,-499.99,0.00038346,2]
[311148972,1704933046541,-313.53157253,0.00038352,4]
[311148974,1704933046550,-500.0,0.00038356,2]
[311148976,1704933046560,-468.23806334,0.00038356,4]
[311148978,1704933046569,-500.0,0.00038356,7]
[311148980,1704933046582,-237.212352,0.00038356,4]
[311148982,1704933046591,-500.0,0.00038356,4]
[311148984,1704933046601,-525.04,0.00038356,2]
[311148986,1704933046610,-500.0,0.00038356,4]
[311148988,1704933046619,-643.95,0.00038356,4]
[311148990,1704933046630,-500.0,0.00038356,4]
[311148992,1704933046639,-500.0,0.00038356,4]
[311148994,1704933046648,-500.0,0.00038356,4]
[311148997,1704933046657,-500.0,0.00038356,4]
[311148999,1704933046666,-500.0,0.00038356,4]
[311149001,1704933046675,-500.0,0.00038356,2]
[311149003,1704933046684,-500.0,0.00038356,4]
[311149005,1704933046693,-500.0,0.00038356,4]
[311149007,1704933046701,-1000.0,0.00038356,2]
[311149009,1704933046710,-500.0,0.00038356,4]
[311149012,1704933046719,-500.0,0.00038356,4]
[311149015,1704933046728,-500.0,0.00038356,4]
[311149019,1704933046737,-519.42743368,0.00038356,4]
[311149023,1704933046746,-500.0,0.00038356,4]
[311149026,1704933046755,-500.0,0.00038356,4]
[311149029,1704933046764,-500.0,0.00038356,4]
[311149032,1704933046773,-500.0,0.00038356,4]
[311149035,1704933046782,-574.63822119,0.00038356,4]
[311149038,1704933046791,-500.0,0.00038356,4]
[311149041,1704933046799,-500.0,0.00038356,4]
[311149044,1704933046809,-500.0,0.00038356,4]
[311149047,1704933046818,-500.0,0.00038356,4]
[311149050,1704933046828,-500.0,0.00038356,4]
[311149053,1704933046837,-500.0,0.00038356,4]
[311149056,1704933046846,-500.0,0.00038356,4]
[311149059,1704933046855,-500.0,0.00038356,4]
[311149062,1704933046864,-500.0,0.00038356,4]
[311149064,1704933046873,-500.0,0.00038356,4]
[311149066,1704933046883,-500.0,0.00038356,4]
[311149068,1704933046892,-189.92287098,0.00038356,4]
[311149070,1704933046901,-500.0,0.00038356,4]
[311149072,1704933046910,-500.0,0.00038356,4]
[311149074,1704933046920,-500.0,0.00038356,4]
[311149076,1704933046929,-500.0,0.00038356,7]
[311149078,1704933046938,-500.0,0.00038356,4]
[311149080,1704933046947,-500.0,0.00038356,4]
[311149082,1704933046956,-500.0,0.00038356,4]
[311149084,1704933046965,-500.0,0.00038356,4]
[311149086,1704933046974,-500.0,0.00038356,4]
[311149088,1704933046983,-500.0,0.00038356,4]
[311149090,1704933046992,-500.0,0.00038356,4]
[311149092,1704933047001,-500.0,0.00038356,4]
[311149094,1704933047010,-500.0,0.00038356,4]
[311149096,1704933047019,-500.0,0.00038356,4]
[311149098,1704933047028,-313.07571892,0.00038356,2]
[311149100,1704933047037,-500.0,0.00038356,4]
[311149102,1704933047047,-500.0,0.00038356,4]
[311149104,1704933047056,-500.0,0.00038356,4]
[311149106,1704933047064,-373.38656836,0.00038356,4]
[311149108,1704933047074,-500.000001,0.00038356,4]
[311149110,1704933047085,-500.0,0.00038356,4]
[311149112,1704933047094,-287.6,0.00038356,4]
[311149114,1704933047102,-500.0,0.00038356,4]
[311149116,1704933047112,-500.0,0.00038356,4]
[311149118,1704933047121,-515.78,0.00038356,4]
[311149120,1704933047130,-500.0,0.00038356,4]
[311149122,1704933047139,-500.0,0.00038356,4]
[311149124,1704933047148,-500.0,0.00038356,4]
[311149127,1704933047166,-500.0,0.00038356,4]
[311149129,1704933047183,-351.22,0.00038356,4]
[311149132,1704933047195,-500.0,0.00038356,4]
[311149133,1704933047205,-518.11521031,0.00038356,4]
[311149134,1704933047214,-500.0,0.00038356,4]
[311149135,1704933047223,-500.0,0.00038356,4]
[311149136,1704933047233,-380.06193418,0.00038356,4]
[311149137,1704933047242,-500.0,0.00038356,4]
[311149138,1704933047252,-500.0,0.00038356,4]
[311149139,1704933047262,-500.0,0.00038356,4]
[311149140,1704933047271,-500.0,0.00038356,4]
[311149141,1704933047281,-500.0,0.00038356,4]
[311149142,1704933047290,-500.0,0.00038356,4]
[311149143,1704933047299,-295.3,0.00038356,4]
[311149145,1704933047309,-500.0,0.00038356,4]
[311149147,1704933047318,-244.97719504,0.00038356,4]
[311149149,1704933047328,-500.0,0.00038356,4]
[311149151,1704933047337,-500.0,0.00038356,4]
[311149154,1704933047346,-500.0,0.00038356,4]
[311149157,1704933047355,-500.0,0.00038356,4]
[311149159,1704933047364,-500.0,0.00038356,4]
[311149162,1704933047374,-500.0,0.00038356,4]
[311149165,1704933047383,-500.0,0.00038356,4]
[311149168,1704933047392,-500.0,0.00038356,4]
[311149171,1704933047401,-500.0,0.00038356,4]
[311149174,1704933047410,-500.0,0.00038356,4]
[311149177,1704933047419,-500.0,0.00038356,4]
[311149180,1704933047429,-500.0,0.00038356,4]
[311149183,1704933047438,-500.0,0.00038356,4]
[311149184,1704933047450,-500.0,0.00038356,4]
[311149186,1704933047459,-500.0,0.00038356,4]
[311149189,1704933047469,-500.0,0.00038356,4]
[311149191,1704933047479,-500.0,0.00038356,4]
[311149193,1704933047489,-500.0,0.00038356,4]
[311149195,1704933047498,-500.0,0.00038356,4]
[311149197,1704933047507,-500.0,0.00038356,4]
[311149199,1704933047517,-500.0,0.00038356,4]
[311149201,1704933047526,-500.0,0.00038356,4]
[311149203,1704933047535,-500.0,0.00038356,4]
[311149205,1704933047545,-420.96,0.00038356,4]
[311149207,1704933047554,-500.0,0.00038356,4]
[311149209,1704933047563,-500.0,0.00038356,4]
[311149211,1704933047573,-500.0,0.00038356,4]
[311149213,1704933047585,-500.0,0.00038356,4]
[311149215,1704933047596,-500.0,0.00038356,4]
[311149217,1704933047606,-500.0,0.00038356,4]
[311149219,1704933047615,-500.0,0.00038356,4]
[311149221,1704933047624,-500.0,0.00038356,4]
[311149223,1704933047633,-500.0,0.00038356,4]
[311149225,1704933047643,-500.0,0.00038356,4]
[311149227,1704933047653,-500.0,0.00038356,4]
[311149229,1704933047663,-279.72837653,0.00038356,4]
[311149231,1704933047672,-500.0,0.00038356,4]
[311149233,1704933047681,-391.03,0.00038356,4]
[311149235,1704933047691,-500.0,0.00038356,4]
[311149237,1704933047700,-500.0,0.00038356,4]
[311149239,1704933047709,-500.0,0.00038356,4]
[311149241,1704933047718,-500.0,0.00038356,4]
[311149243,1704933047727,-500.0,0.00038356,4]
[311149244,1704933047736,-500.0,0.00038356,4]
[311149247,1704933047746,-500.0,0.00038356,4]
[311149249,1704933047756,-500.0,0.00038356,4]
[311149251,1704933047765,-500.0,0.00038356,4]
[311149253,1704933047774,-500.0,0.00038356,4]
[311149255,1704933047783,-500.0,0.00038356,4]
[311149257,1704933047792,-500.0,0.00038356,4]
[311149259,1704933047801,-500.0,0.00038356,4]
[311149260,1704933047811,-500.0,0.00038356,4]
[311149261,1704933047820,-500.0,0.00038356,4]
[311149262,1704933047830,-500.0,0.00038356,4]
[311149263,1704933047839,-500.0,0.00038356,4]
[311149264,1704933047848,-500.0,0.00038356,4]
[311149265,1704933047857,-500.0,0.00038356,4]
[311149266,1704933047866,-500.0,0.00038356,4]
[311149267,1704933047875,-500.0,0.00038356,4]
[311149268,1704933047883,-500.0,0.00038356,4]
[311149270,1704933047892,-500.0,0.00038356,4]
[311149272,1704933047901,-500.0,0.00038356,4]
[311149274,1704933047910,-500.0,0.00038356,4]
[311149276,1704933047920,-500.0,0.00038356,4]
[311149278,1704933047929,-500.0,0.00038356,4]
[311149280,1704933047938,-500.0,0.00038356,4]
[311149282,1704933047947,-500.0,0.00038356,4]
[311149284,1704933047956,-500.0,0.00038356,4]
[311149287,1704933047967,-500.0,0.00038356,4]
[311149289,1704933047976,-500.0,0.00038356,4]
[311149291,1704933047986,-500.0,0.00038356,4]
[311149293,1704933047994,-500.0,0.00038356,4]
[311149295,1704933048004,-500.0,0.00038356,4]
[311149297,1704933048014,-500.0,0.00038356,4]
[311149299,1704933048023,-4181.79528262,0.00038356,4]
[311149317,1704933048180,-747.83512457,0.00038356,4]
[311149319,1704933048193,-276.32959281,0.00038356,4]
[311149321,1704933048203,-500.0,0.00038356,4]
[311149323,1704933048213,-500.0,0.00038356,4]
[311149325,1704933048223,-500.0,0.00038356,4]
[311149328,1704933048232,-500.0,0.00038356,4]
[311149329,1704933048241,-500.0,0.00038356,4]
[311149332,1704933048250,-500.0,0.00038356,4]
[311149334,1704933048261,-500.0,0.00038356,4]
[311149336,1704933048270,-500.0,0.00038356,4]
[311149337,1704933048279,-278.06537807,0.00038356,4]
[311149339,1704933048288,-63.2851391,0.00038356,4]
[311149342,1704933048300,-436.7148609,0.00038356,4]
[311149344,1704933048309,-500.0,0.00038356,4]
[311149346,1704933048318,-500.0,0.00038356,4]
[311149348,1704933048330,-500.0,0.00038356,4]
[311149350,1704933048339,-386.5851391,0.00038356,4]
[311149352,1704933048350,-113.4148609,0.00038356,4]
[311149354,1704933048359,-500.0,0.00038356,4]
[311149356,1704933048368,-500.0,0.00038356,4]
[311149358,1704933048377,-500.0,0.00038356,4]
[311149360,1704933048387,-500.0,0.00038356,4]
[311149362,1704933048399,-500.0,0.00038356,4]
[311149364,1704933048409,-500.0,0.00038356,4]
[311149366,1704933048418,-475.29329679,0.00038356,4]
[311149372,1704933048460,-24.70670321,0.00038356,4]
[311149374,1704933048470,-500.0,0.00038356,4]
[311149376,1704933048479,-350.0,0.00038356,4]
[311149378,1704933048489,-500.0,0.00038356,4]
[311149380,1704933048498,-500.0,0.00038356,4]
[311149382,1704933048507,-500.0,0.00038356,4]
[311149384,1704933048517,-327.06,0.00038356,4]
[311149386,1704933048526,-500.0,0.00038356,4]
[311149388,1704933048535,-367.73389561,0.00038356,4]
[311149390,1704933048549,-132.26610439,0.00038356,4]
[311149392,1704933048558,-500.0,0.00038356,4]
[311149394,1704933048568,-500.0,0.00038356,4]
[311149396,1704933048579,-500.0,0.00038356,4]
[311149398,1704933048588,-500.0,0.00038356,4]
[311149400,1704933048598,-500.0,0.00038356,4]
[311149402,1704933048608,-500.0,0.00038356,4]
[311149404,1704933048618,-500.0,0.00038356,4]
[311149406,1704933048628,-500.0,0.00038356,4]
[311149408,1704933048637,-500.0,0.00038356,4]
[311149410,1704933048646,-500.0,0.00038356,4]
[311149412,1704933048656,-500.0,0.00038356,4]
[311149414,1704933048665,-500.0,0.00038356,4]
[311149416,1704933048675,-500.0,0.00038356,4]
[311149418,1704933048684,-273.49682158,0.00038356,4]
[311149420,1704933048696,-226.50317842,0.00038356,4]
[311149422,1704933048705,-286.13673618,0.00038356,4]
[311149425,1704933048720,-299.44655982,0.00038278,2]
[311149428,1704933048739,-502.82862032,0.00038278,2]
[311149430,1704933048748,-213.86326382,0.00038356,4]
[311149432,1704933048757,-500.0,0.00038356,4]
[311149434,1704933048766,-500.0,0.00038356,4]
[311149436,1704933048776,-500.0,0.00038356,4]
[311149438,1704933048784,-588.0,0.00038356,4]
[311149440,1704933048793,-500.0,0.00038356,4]
[311149442,1704933048802,-500.0,0.00038356,4]
[311149444,1704933048811,-500.0,0.00038356,4]
[311149446,1704933048821,-500.0,0.00038356,4]
[311149448,1704933048832,-500.0,0.00038356,4]
[311149450,1704933048841,-500.0,0.00038356,4]
[311149452,1704933048852,-555.46,0.00038356,4]
[311149454,1704933048861,-500.0,0.00038356,4]
[311149456,1704933048870,-500.0,0.00038356,4]
[311149458,1704933048879,-150.0,0.00038368,2]
[311149460,1704933048888,-1373.84217272,0.00038388,2]
[311149462,1704933048897,-4776.64637204,0.0003839,10]
[311149464,1704933048906,-6872.0,0.000384,2]
[311149466,1704933048915,-1000.0,0.000384,2]
[311149468,1704933048924,-1360.66515113,0.00038406,2]
[311149470,1704933048933,-150.0,0.00038446,2]
[311149472,1704933048942,-156.11334273,0.00038446,7]
[311149474,1704933048951,-2388.32318602,0.00038476,10]
[311149476,1704933048960,-278.84,0.00038495,2]
[311149478,1704933048969,-657.04217787,0.000385,2]
[311149480,1704933048978,-28659.8782322,0.0003862,10]
[311149483,1704933048989,-500.0,0.0003863,4]
[311149485,1704933048998,-497.93014,0.0003863,4]
[311149487,1704933049007,-500.0,0.0003863,4]
[311149488,1704933049016,-500.0,0.0003863,4]
[311149491,1704933049025,-500.0,0.0003863,4]
[311149493,1704933049035,-344.97,0.0003863,4]
[311149495,1704933049044,-500.0,0.0003863,4]
[311149496,1704933049053,-500.0,0.0003863,4]
[311149499,1704933049063,-500.0,0.0003863,4]
[311149501,1704933049071,-207.8,0.0003863,4]
[311149503,1704933049082,-500.0,0.0003863,4]
[311149505,1704933049091,-500.0,0.0003863,4]
[311149507,1704933049100,-578.26,0.0003863,4]
[311149509,1704933049109,-500.0,0.0003863,7]
[311149511,1704933049118,-219.49703631,0.0003863,4]
[311149513,1704933049127,-500.0,0.0003863,4]
[311149515,1704933049137,-423.70773765,0.0003863,4]
[311149517,1704933049146,-605.86,0.0003863,4]
[311149519,1704933049156,-223.47754376,0.0003863,4]
[311149521,1704933049165,-518.76,0.0003863,4]
[311149523,1704933049175,-500.0,0.0003863,4]
[311149525,1704933049186,-487.46,0.0003863,4]
[311149527,1704933049196,-500.0,0.0003863,4]
[311149529,1704933049206,-590.7,0.0003863,4]
[311149531,1704933049215,-500.0,0.0003863,4]
[311149532,1704933049224,-500.0,0.0003863,4]
[311149535,1704933049234,-500.0,0.0003863,4]
[311149551,1704933049400,-500.0,0.0003863,4]
[311149552,1704933049410,-500.0,0.0003863,4]
[311149553,1704933049419,-500.0,0.0003863,4]
[311149554,1704933049429,-579.84,0.0003863,4]
[311149555,1704933049438,-500.0,0.0003863,4]
[311149556,1704933049448,-516.54,0.0003863,4]
[311149557,1704933049457,-500.0,0.0003863,4]
[311149559,1704933049467,-500.0,0.0003863,4]
[311149561,1704933049476,-500.0,0.0003863,4]
[311149563,1704933049485,-500.0,0.0003863,4]
[311149565,1704933049495,-500.0,0.0003863,4]
[311149567,1704933049504,-500.0,0.0003863,4]
[311149569,1704933049514,-500.0,0.0003863,4]
[311149571,1704933049523,-500.0,0.0003863,4]
[311149573,1704933049533,-500.0,0.0003863,4]
[311149575,1704933049543,-500.0,0.0003863,4]
[311149577,1704933049552,-500.0,0.0003863,4]
[311149579,1704933049561,-183.75,0.0003863,4]
[311149580,1704933049571,-500.0,0.0003863,4]
[311149583,1704933049584,-304.19669864,0.0003863,4]
[311149585,1704933049593,-500.0,0.0003863,4]
[311149586,1704933049603,-500.0,0.0003863,4]
[311149588,1704933049612,-500.0,0.0003863,4]
[311149590,1704933049621,-500.0,0.0003863,4]
[311149592,1704933049632,-500.0,0.0003863,4]
[311149594,1704933049641,-500.0,0.0003863,4]
[311149596,1704933049650,-645.61,0.0003863,4]
[311149598,1704933049659,-500.0,0.0003863,4]
[311149600,1704933049668,-500.0,0.0003863,4]
[311149602,1704933049678,-500.0,0.0003863,4]
[311149604,1704933049687,-500.0,0.0003863,4]
[311149606,1704933049696,-500.0,0.0003863,4]
[311149608,1704933049705,-500.0,0.0003863,4]
[311149610,1704933049715,-500.0,0.0003863,4]
[311149612,1704933049724,-500.0,0.0003863,4]
[311149614,1704933049733,-500.0,0.0003863,4]
[311149616,1704933049742,-500.0,0.0003863,4]
[311149618,1704933049751,-500.0,0.0003863,4]
[311149620,1704933049760,-469.81,0.0003863,4]
[311149622,1704933049769,-385.10288221,0.0003863,4]
[311150186,1704933336473,-150.0,0.00031,2]
[311150187,1704933851514,1001.7055,0.00030886,120]
[311150194,1704934151096,-155.0,0.00030973,2]
[311150195,1704934151116,-1000.0,0.00030974,2]
[311150196,1704934151136,-150.0,0.00031,2]
[311150197,1704934151155,-104.1841,0.00032674,5]
[311150201,1704934162119,-583.7721192,0.00032674,5]
[311150202,1704934163960,425.58072366,0.00034,4]
[311150212,1704934232337,-288.53,0.00031,2]
[311150213,1704934232347,-155.0,0.0003474,2]
[311150214,1704934232356,-1000.0,0.00034741,4]
[311150215,1704934232366,-587.02496999,0.00034742,2]
[311150216,1704934232378,-296.8008783,0.00035,4]
[311150217,1704934232388,-160.99529057,0.00035,2]
[311150218,1704934232397,-249.37,0.00035019,2]
[311150219,1704934232407,-1000.0,0.000351,2]
[311150220,1704934232416,-204.0,0.00035325,2]
[311150221,1704934232426,-408.08870531,0.00035816,4]
[311150222,1704934232435,-150.0,0.00035816,3]
[311150223,1704934232444,-300.0,0.00035816,3]
[311150224,1704934232453,-851.73,0.00035816,2]
[311150225,1704934232463,-191.38960469,0.00035817,4]
[311150226,1704934232472,-7488.46581167,0.00035817,4]
[311150227,1704934232484,-4055.02498365,0.00035817,4]
[311150228,1704934232494,-237.24,0.00035817,5]
[311150229,1704934232503,-999.99,0.00035817,2]
[311150230,1704934232513,-150.99,0.00035817,2]
[311150231,1704934232522,-11104.73365539,0.00035818,11]
[311150232,1704934232532,-15892.04210337,0.00035818,11]
[311150233,1704934232545,-6823.62077948,0.00035818,10]
[311150234,1704934232554,-421.0,0.00036,2]
[311150235,1704934232565,-150.0,0.00036457,2]
[311150236,1704934232575,-152.81,0.00036541,2]
[311150237,1704934232584,-680.0,0.00036656,2]
[311150238,1704934232593,-171.97,0.0003669,2]
[311150239,1704934232602,-1000.0,0.00036699,2]
[311150240,1704934232611,-183.72,0.00036761,15]
[311150241,1704934232622,-250.0,0.00036761,111]
[311150242,1704934232631,-250.0,0.0003679,2]
[311150243,1704934232641,-4207.77,0.00036843,2]
[311150244,1704934232650,-2809.62,0.00036847,2]
[311150245,1704934232660,-538.38888893,0.00036899,4]
[311150246,1704934232669,-1000.0,0.000369,2]
[311150248,1704934232678,-2000.0,0.0003694,2]
[311150250,1704934232688,-156.99,0.0003697,2]
[311150252,1704934232697,-155.0,0.00037,4]
[311150253,1704934232706,-4119.16982571,0.00037,2]
[311150256,1704934232722,-880.83017429,0.00037,2]
[311150258,1704934232731,-154.65,0.00037,3]
[311150260,1704934232740,-154.65,0.00037,3]
[311150262,1704934232749,-154.65,0.00037,3]
[311150264,1704934232759,-154.65,0.00037,3]
[311150266,1704934232769,-176.46,0.00037145,2]
[311150268,1704934232778,-320.0,0.00037156,2]
[311150270,1704934232790,-5739.53724882,0.000372,7]
[311150272,1704934232800,-249.37,0.00037283,2]
[311150274,1704934232809,-159.49727413,0.00037355,7]
[311150276,1704934232819,-150.0,0.00037431,2]
[311150278,1704934232829,-176.46,0.00037549,2]
[311150280,1704934232839,-151.9747,0.0003772,2]
[311150282,1704934232849,-1000.0,0.000378,2]
[311150284,1704934232859,-747.11530164,0.00037879,7]
[311150286,1704934232868,-375.4988,0.00037942,2]
[311150288,1704934232878,-326.72373977,0.0003796,4]
[311150290,1704934232887,-158.0,0.00038,2]
[311150293,1704934232897,-175.0,0.00038,2]
[311150295,1704934232906,-150.0,0.00038,18]
[311150297,1704934232916,-157.0,0.00038,2]
[311150299,1704934232926,-2552.04569409,0.00038039,4]
[311150301,1704934232935,-7152.6959,0.0003815,2]
[311150303,1704934232944,-166.20233,0.0003824,2]
[311150305,1704934232954,-322.41,0.0003824,10]
[311150307,1704934232964,-268.67,0.0003824,10]
[311150309,1704934232973,-223.89,0.0003824,10]
[311150311,1704934232982,-395.63729594,0.0003824,2]
[311150313,1704934232992,-395.63729594,0.0003824,2]
[311150315,1704934233001,-829.22,0.00038244,2]
[311150317,1704934233010,-196.944,0.00038244,2]
[311150319,1704934233020,-150.0,0.00038244,2]
[311150321,1704934233029,-150.0,0.00038244,2]
[311150323,1704934233041,-150.208,0.00038244,2]
[311150325,1704934233050,-153.0,0.00038244,2]
[311150327,1704934233062,-150.0,0.00038244,2]
[311150329,1704934233071,-217.17335148,0.00038248,4]
[311150331,1704934233080,-462.4429639,0.00038249,2]
[311150333,1704934233090,-38012.91953775,0.0003825,2]
[311150335,1704934233099,-154.65,0.000383,3]
[311150337,1704934233109,-154.65,0.000383,3]
[311150340,1704934233118,-154.65,0.000383,3]
[311150342,1704934233136,-154.65,0.000383,3]
[311150344,1704934233149,-395.63729594,0.000383,2]
[311150347,1704934233160,-4898.19478324,0.0003831,2]
[311150349,1704934233171,-3301.085,0.0003831,2]
[311150351,1704934233183,-9667.43606982,0.0003831,2]
[311150354,1704934233196,-2841.51931985,0.0003831,2]
[311150356,1704934233207,-370.05113049,0.00038325,4]
[311150358,1704934233218,-395.63729594,0.00038335,2]
[311150360,1704934233229,-1730.64533106,0.00038344,2]
[311150361,1704934233239,-478.01904335,0.00038344,4]
[311150362,1704934233249,-207.86968869,0.00038344,2]
[311150363,1704934233261,-383.84892023,0.00038344,4]
[311150365,1704934233273,-162.16059053,0.00038345,4]
[311150366,1704934233286,-930.97062387,0.00038345,4]
[311150367,1704934233296,-11268.18394715,0.00038355,2]
[311150368,1704934233306,-269.0439706,0.00038356,4]
[311150369,1704934233317,-500.0,0.00038356,4]
[311150370,1704934233327,-434.51448295,0.00038356,4]
[311150371,1704934233338,-442.84084611,0.00038356,4]
[311150372,1704934233349,-500.0,0.00038356,4]
[311150373,1704934233360,-500.0,0.00038356,4]
[311150374,1704934233371,-500.0,0.00038356,4]
[311150375,1704934233381,-500.0,0.00038356,4]
[311150376,1704934233393,-188.05956982,0.00038356,4]
[311150377,1704934233404,-395.63729594,0.0003839,2]
[311150378,1704934233415,-6873.33571906,0.000384,2]
[311150379,1704934233425,-150.0,0.00038405,2]
[311150380,1704934233434,-2381.3328,0.0003843,2]
[311150381,1704934233445,-152.81,0.00038498,2]
[311150382,1704934233455,-171.97,0.000385,2]
[311150383,1704934233466,-657.04217787,0.000385,2]
[311150384,1704934233476,-395.63729594,0.0003852,2]
[311150385,1704934233489,-2000.0,0.0003853,4]
[311150386,1704934233499,-7500.0,0.0003853,2]
[311150387,1704934233510,-150.38353365,0.00038581,7]
[311150388,1704934233521,-2703.9232041,0.00038628,4]
[311150389,1704934233532,-2265.58816152,0.00038628,4]
[311150390,1704934233542,-307.49072606,0.00038628,4]
[311150391,1704934233554,-1446.91385758,0.00038629,4]
[311150392,1704934233565,-5798.73291477,0.00038629,4]
[311150393,1704934233576,-242.64035737,0.00038629,4]
[311150394,1704934233586,-500.0,0.0003863,4]
[311150395,1704934233598,-395.63729594,0.00038684,2]
[311150396,1704934233609,-850.4073,0.00038694,2]
[311150397,1704934233619,-155.374608,0.0003873,2]
[311150398,1704934233629,-155.374608,0.0003873,2]
[311150399,1704934233638,-1269.1714,0.000388,2]
[311150400,1704934233648,-2500.0,0.00038807,2]
[311150401,1704934233659,-204.0,0.0003885,10]
[311150402,1704934233671,-395.63729594,0.00038896,2]
[311150403,1704934233681,-156.99,0.00038897,2]
[311150404,1704934233692,-395.63729594,0.00038897,2]
[311150405,1704934233714,-395.63729594,0.00038897,2]
[311150406,1704934233726,-166.96,0.00038897,2]
[311150407,1704934233738,-188.01848645,0.00038899,9]
[311150408,1704934233751,-1567.81631751,0.000389,2]
[311150409,1704934233765,-407.402643,0.000389,11]
[311150410,1704934233778,-500.0,0.00038904,4]
[311150411,1704934233793,-500.0,0.00038906,4]
[311150412,1704934233804,-601.28,0.00038906,4]
[311150413,1704934233814,-500.0,0.00038906,4]
[311150414,1704934233828,-500.0,0.00038906,4]
[311150415,1704934233840,-500.0,0.00038906,4]
[311150416,1704934233852,-500.0,0.00038906,4]
[311150417,1704934233864,-500.0,0.00038906,4]
[311150418,1704934233877,-500.0,0.00038906,4]
[311150419,1704934233889,-500.0,0.00038906,4]
[311150420,1704934233901,-500.0,0.00038906,4]
[311150421,1704934233913,-500.0,0.00038906,4]
[311150422,1704934233925,-500.0,0.00038906,4]
[311150423,1704934233939,-500.0,0.00038906,4]